fUST/lending_fUST_20250109
["ID","MTS","AMOUNT","RATE_DAILY","PERIOD"]
[348190650,1736374250668,-792.15,0.00021085,3]
[348190652,1736374250678,-500.0,0.00021085,3]
[348190654,1736374250688,-500.0,0.00021086,3]
[348190657,1736374250698,-257.15675811,0.00021141,2]
[348190658,1736374250707,-420.0,0.00021175,2]
[348190661,1736374250717,-257.15675811,0.00021279,2]
[348190663,1736374250727,-540.86,0.00021353,3]
[348190665,1736374250737,-500.0,0.00021353,3]
[348190667,1736374250746,-500.0,0.00021353,3]
[348190669,1736374250756,-500.0,0.00021353,3]
[348190671,1736374250765,-500.0,0.00021353,3]
[348190673,1736374250774,-348.07,0.00021353,3]
[348190675,1736374250784,-500.0,0.00021353,3]
[348190677,1736374250794,-500.0,0.00021353,3]
[348190679,1736374250803,-500.0,0.00021353,3]
[348190681,1736374250813,-500.0,0.00021353,3]
[348190683,1736374250823,-500.0,0.00021354,3]
[348190685,1736374250833,-500.0,0.00021354,3]
[348190687,1736374250842,-500.0,0.00021354,3]
[348190689,1736374250851,-546.58,0.00021354,3]
[348190691,1736374250861,-500.0,0.00021354,3]
[348190693,1736374250871,-520.2,0.00021354,2]
[348190695,1736374250880,-500.0,0.00021354,3]
[348190697,1736374250890,-500.0,0.00021354,3]
[348190699,1736374250899,-613.2,0.00021354,3]
[348190701,1736374250908,-500.0,0.00021354,3]
[348190703,1736374250918,-500.0,0.00021354,3]
[348190705,1736374250928,-355.73,0.00021354,3]
[348190707,1736374250939,-3884.69,0.00021354,3]
[348190709,1736374250949,-172.09,0.00021354,3]
[348190711,1736374250959,-500.0,0.00021355,3]
[348190713,1736374250969,-303.53,0.00021355,3]
[348190715,1736374250979,-500.0,0.00021355,3]
[348190717,1736374250988,-921.29,0.00021355,3]
[348190719,1736374250998,-500.0,0.00021356,3]
[348190721,1736374251007,-500.0,0.00021356,3]
[348190723,1736374251017,-792.15,0.00021359,3]
[348190725,1736374251027,-500.0,0.00021359,3]
[348190727,1736374251036,-500.0,0.0002136,3]
[348190729,1736374251046,-257.15675811,0.00021417,2]
[348190731,1736374251056,-257.15675811,0.00021555,2]
[348190733,1736374251065,-2405.0,0.000216,4]
[348190735,1736374251075,-540.86,0.00021627,3]
[348190737,1736374251084,-500.0,0.00021627,3]
[348190739,1736374251093,-500.0,0.00021627,3]
[348190741,1736374251103,-500.0,0.00021627,3]
[348190743,1736374251112,-500.0,0.00021627,3]
[348190745,1736374251122,-500.0,0.00021627,3]
[348190747,1736374251131,-500.0,0.00021627,3]
[348190749,1736374251141,-500.0,0.00021627,3]
[348190751,1736374251150,-500.0,0.00021627,3]
[348190753,1736374251160,-500.0,0.00021628,3]
[348190754,1736374251170,-428.34,0.00021628,3]
[348190756,1736374251179,-528.11557765,0.00021628,3]
[348190759,1736374251191,-500.0,0.00021628,3]
[348190761,1736374251201,-263.99,0.00021628,3]
[348190763,1736374251211,-500.0,0.00021628,3]
[348190765,1736374251221,-500.0,0.00021628,3]
[348190767,1736374251230,-500.0,0.00021628,3]
[348190769,1736374251239,-151.0,0.00021628,2]
[348190771,1736374251249,-3884.69,0.00021628,3]
[348190773,1736374251258,-452.76,0.00021629,3]
[348190775,1736374251267,-500.0,0.00021629,3]
[348190776,1736374251276,-500.0,0.0002163,3]
[348190779,1736374251285,-500.0,0.0002163,3]
[348190780,1736374251294,-792.15,0.00021633,3]
[348190783,1736374251304,-300.08,0.00021633,3]
[348190785,1736374251314,-500.0,0.00021634,3]
[348190787,1736374251323,-257.15675811,0.00021693,2]
[348190789,1736374251333,-151.0,0.000217,4]
[348190791,1736374251343,-465.36716413,0.00021824,2]
[348190793,1736374251353,-257.15675811,0.00021831,2]
[348190795,1736374251362,-540.86,0.00021901,3]
[348190797,1736374251372,-500.0,0.00021901,3]
[348190799,1736374251381,-618.68,0.00021901,3]
[348190801,1736374251391,-500.0,0.00021901,3]
[348190803,1736374251400,-500.0,0.00021901,3]
[348190805,1736374251409,-500.0,0.00021901,3]
[348190807,1736374251418,-494.71,0.00021901,3]
[348190809,1736374251428,-500.0,0.00021901,3]
[348190811,1736374251439,-500.0,0.00021901,3]
[348190813,1736374251448,-358.46,0.00021902,3]
[348190815,1736374251458,-500.0,0.00021902,3]
[348190817,1736374251467,-248.08,0.00021902,3]
[348190819,1736374251476,-500.0,0.00021902,3]
[348190821,1736374251486,-375.58,0.00021902,3]
[348190823,1736374251496,-3884.69,0.00021902,3]
[348190825,1736374251506,-500.0,0.00021903,3]
[348190827,1736374251515,-921.29,0.00021903,3]
[348190829,1736374251525,-500.0,0.00021904,3]
[348190831,1736374251534,-500.0,0.00021904,3]
[348190833,1736374251544,-792.15,0.00021907,3]
[348190835,1736374251554,-455.31,0.00021908,3]
[348190837,1736374251563,-257.15675811,0.00021969,2]
[348190839,1736374251573,-553.567,0.0002204,2]
[348190841,1736374251585,-151.0,0.000221,10]
[348190843,1736374251594,-782.09,0.000221,2]
[348190845,1736374251604,-257.15675811,0.00022107,2]
[348190847,1736374251614,-540.86,0.00022175,3]
[348190849,1736374251624,-500.0,0.00022175,3]
[348190851,1736374251633,-500.0,0.00022175,3]
[348190853,1736374251643,-500.0,0.00022175,3]
[348190855,1736374251652,-183.2,0.00022175,3]
[348190857,1736374251663,-465.77,0.00022175,3]
[348190859,1736374251673,-474.5,0.00022175,3]
[348190861,1736374251682,-529.74,0.00022176,3]
[348190863,1736374251693,-500.0,0.00022176,3]
[348190865,1736374251703,-3884.69,0.00022176,3]
[348190867,1736374251713,-412.54,0.00022177,3]
[348190869,1736374251723,-151.0,0.00022178,7]
[348190871,1736374251732,-500.0,0.00022178,3]
[348190873,1736374251742,-151.0,0.00022178,7]
[348190875,1736374251751,-500.0,0.00022178,3]
[348190877,1736374251761,-921.29,0.00022178,3]
[348190879,1736374251771,-792.15,0.00022181,3]
[348190881,1736374251780,-257.15675811,0.00022245,2]
[348190883,1736374251789,-257.15675811,0.00022383,2]
[348190885,1736374251798,-394.0,0.00022415,2]
[348190887,1736374251808,-540.86,0.00022449,3]
[348190889,1736374251819,-305.03,0.00022449,3]
[348190891,1736374251829,-500.0,0.00022449,3]
[348190893,1736374251838,-339.92,0.00022449,3]
[348190895,1736374251850,-500.0,0.0002245,3]
[348190897,1736374251859,-3884.69,0.0002245,3]
[348190899,1736374251868,-500.0,0.00022452,3]
[348190901,1736374251878,-378.47,0.00022452,3]
[348190903,1736374251888,-792.15,0.00022455,3]
[348190905,1736374251897,-151.0,0.000225,10]
[348190907,1736374251906,-257.15675811,0.00022521,2]
[348190909,1736374251916,-257.15675811,0.00022659,2]
[348190911,1736374251926,-540.86,0.00022723,3]
[348190913,1736374251936,-228.78118069,0.00022723,3]
[348190915,1736374251946,-500.0,0.00022724,3]
[348190918,1736374251956,-3884.69,0.00022724,3]
[348190920,1736374251966,-921.29,0.00022725,3]
[348190921,1736374251976,-500.0,0.00022726,3]
[348190923,1736374251985,-792.15,0.00022729,3]
[348190925,1736374251994,-150.0,0.0002279,2]
[348190927,1736374252003,-2318.0,0.0002279,2]
[348190930,1736374252013,-257.15675811,0.00022797,2]
[348190932,1736374252023,-151.0,0.000228,8]
[348190934,1736374252032,-257.15675811,0.00022934,2]
[348190935,1736374252042,-540.86,0.00022997,3]
[348190938,1736374252052,-563.08,0.00022998,3]
[348190940,1736374252063,-3884.69,0.00022998,3]
[348190942,1736374252073,-921.29,0.00022999,3]
[348190944,1736374252082,-8607.66,0.00023,14]
[348190945,1736374252092,-500.0,0.00023,3]
[348190947,1736374252102,-151.0,0.00023,7]
[348190950,1736374252112,-792.15,0.00023003,3]
[348190952,1736374252122,-254.0,0.0002307,2]
[348190954,1736374252132,-257.15675811,0.00023072,2]
[348190955,1736374252141,-921.29,0.00023107,3]
[348190957,1736374252152,-151.0,0.00023108,7]
[348190959,1736374252162,-206.045294,0.00023108,7]
[348190961,1736374252172,-151.0,0.00023108,7]
[348190964,1736374252182,-1872.27971298,0.00023108,2]
[348190965,1736374252193,-255.0,0.0002319,10]
[348190967,1736374252203,-921.29,0.00023205,3]
[348190970,1736374252213,-921.29,0.00023205,3]
[348190972,1736374252223,-921.29,0.00023205,3]
[348190973,1736374252233,-921.29,0.00023205,3]
[348190975,1736374252242,-921.50185688,0.00023205,3]
[348190977,1736374252253,-151.0,0.00023206,7]
[348190980,1736374252262,-151.0,0.00023206,7]
[348190981,1736374252271,-151.0,0.00023206,7]
[348190983,1736374252280,-151.0,0.00023206,7]
[348190985,1736374252290,-151.0,0.00023206,7]
[348190988,1736374252300,-167.472844,0.00023206,7]
[348190990,1736374252310,-125287.43775173,0.00023208,5]
[348190991,1736374252320,-11438.28775022,0.00023208,5]
[348190993,1736374252329,-85863.06821225,0.00023208,10]
[348191001,1736374252391,-535.5468875,0.00023208,10]
[348191253,1736374384598,162.758789,0.00013973,2]
[348191255,1736375152140,-431.72089735,0.00018476,2]
[348191257,1736375230128,-87.48538875,0.00018476,2]
[348191258,1736375230152,-233.58669468,0.00019434,2]
[348191259,1736375292238,837.41768922,0.000125,2]
[348191260,1736375307088,163.053427,0.00013973,2]
[348191266,1736375345162,-831.09507826,0.00016,2]
[348191267,1736375347124,-98.37487697,0.00016,2]
[348191268,1736375347145,-5673.31616164,0.00018,7]
[348191291,1736375432321,-123.29806557,0.00018,7]
[348191292,1736375432331,-150.0,0.000189,2]
[348191293,1736375432340,-300.0,0.00019434,2]
[348191294,1736375432350,-500.0,0.00019434,3]
[348191295,1736375432359,-479.67286512,0.00019435,3]
[348191296,1736375432408,-33.51713488,0.00019435,3]
[348191297,1736375432417,-183.05055341,0.00019435,3]
[348191298,1736375432426,-289.76968483,0.00019435,3]
[348191325,1736375438103,-210.23031517,0.00019435,3]
[348191327,1736375438113,-500.0,0.00019435,3]
[348191329,1736375438123,-500.0,0.00019435,3]
[348191331,1736375438132,-293.25497047,0.00019435,3]
[348191350,1736375438306,-47.96898859,0.00019435,3]
[348191353,1736375438318,-158.77604094,0.00019435,3]
[348191355,1736375438327,-500.0,0.00019435,3]
[348191357,1736375438336,-500.0,0.00019435,3]
[348191360,1736375438346,-495.01,0.00019435,3]
[348191363,1736375438355,-5.63848221,0.00019435,3]
[348191366,1736375438367,-494.36151779,0.00019435,3]
[348191368,1736375438376,-500.0,0.00019435,3]
[348191369,1736375438385,-500.0,0.00019435,3]
[348191370,1736375438394,-2214.49,0.00019435,3]
[348191371,1736375438404,-217.45108688,0.00019435,3]
[348191373,1736375438413,-500.0,0.00019435,3]
[348191374,1736375438423,-500.0,0.00019435,3]
[348191376,1736375438432,-500.0,0.00019435,3]
[348191378,1736375438443,-597.83,0.00019435,3]
[348191380,1736375438453,-500.0,0.00019435,3]
[348191382,1736375438462,-500.0,0.00019435,3]
[348191383,1736375438472,-500.0,0.00019435,3]
[348191384,1736375438481,-500.0,0.00019435,3]
[348191386,1736375438490,-421.73987674,0.00019435,3]
[348191388,1736375438500,-500.0,0.00019435,3]
[348191389,1736375438509,-500.0,0.00019435,3]
[348191391,1736375438520,-500.0,0.00019435,3]
[348191393,1736375438531,-500.0,0.00019435,3]
[348191394,1736375438541,-324.31,0.00019435,3]
[348191395,1736375438551,-500.0,0.00019435,2]
[348191396,1736375438560,-546.92827827,0.00019435,3]
[348191397,1736375438570,-153.49,0.00019435,2]
[348191398,1736375438580,-150.25034411,0.00019436,3]
[348191399,1736375438589,-505.64032406,0.00019436,3]
[348191400,1736375438598,-500.0,0.00019436,3]
[348191401,1736375438607,-534.58633203,0.00019436,3]
[348191402,1736375438617,-508.6375077,0.00019436,3]
[348191403,1736375438626,-500.0,0.00019436,3]
[348191404,1736375438636,-500.0,0.00019436,3]
[348191405,1736375438646,-500.0,0.00019436,3]
[348191406,1736375438655,-500.0,0.00019436,3]
[348191407,1736375438665,-500.0,0.00019436,3]
[348191408,1736375438674,-105.28473247,0.00019436,3]
[348191409,1736375438746,-394.71526753,0.00019436,3]
[348191410,1736375438756,-500.0,0.00019436,3]
[348191411,1736375438765,-361.62473264,0.00019436,3]
[348191412,1736375438776,-55.2378893,0.00019436,3]
[348191413,1736375438787,-210.12873663,0.00019436,3]
[348191428,1736375444009,-289.87126337,0.00019436,3]
[348191429,1736375444019,-500.0,0.00019436,3]
[348191430,1736375444029,-445.21348874,0.00019436,3]
[348191431,1736375444041,-500.0,0.00019436,3]
[348191432,1736375444051,-500.0,0.00019436,3]
[348191433,1736375444061,-318.42783911,0.00019436,3]
[348191434,1736375444086,-181.57216089,0.00019436,3]
[348191435,1736375444095,-74.2728413,0.00019436,3]
[348191436,1736375444106,-302.23434211,0.00019436,3]
[348191477,1736375446242,-123.49281659,0.00019436,3]
[348191478,1736375446253,-428.51053016,0.00019436,3]
[348191479,1736375446265,-71.48946984,0.00019436,3]
[348191480,1736375446274,-500.0,0.00019436,3]
[348191481,1736375446283,-500.0,0.00019436,3]
[348191482,1736375446293,-500.0,0.00019436,3]
[348191483,1736375446302,-500.0,0.00019436,3]
[348191484,1736375446312,-589.27335426,0.00019436,3]
[348191485,1736375446321,-500.0,0.00019436,3]
[348191486,1736375446331,-500.0,0.00019436,3]
[348191487,1736375446340,-500.0,0.00019436,3]
[348191488,1736375446349,-420.0,0.00019436,3]
[348191489,1736375446359,-500.0,0.00019436,3]
[348191490,1736375446368,-500.0,0.00019436,3]
[348191491,1736375446377,-500.0,0.00019436,3]
[348191492,1736375446387,-500.0,0.00019436,3]
[348191493,1736375446397,-500.0,0.00019436,3]
[348191494,1736375446406,-500.0,0.00019436,3]
[348191495,1736375446416,-500.0,0.00019436,3]
[348191496,1736375446425,-500.0,0.00019436,3]
[348191497,1736375446437,-500.0,0.00019436,3]
[348191498,1736375446447,-214.96614214,0.00019436,3]
[348191499,1736375446457,-51.28552469,0.00019438,3]
[348191500,1736375446469,-426.554,0.00019438,3]
[348191504,1736376344414,163.40396,0.00013973,2]
[348191505,1736376425131,-215.681149,0.00018436,2]
[348191506,1736376425154,-1401.1323241,0.00018436,2]
[348191507,1736376425175,-555.39371385,0.000189,2]
[348191508,1736376425197,-158.88020117,0.000193,2]
[348191509,1736376425217,-302.60665372,0.00019341,2]
[348191510,1736376425238,-500.0,0.00019373,2]
[348191511,1736376425259,-614.05444544,0.00019373,2]
[348191512,1736376425281,-300.0,0.00019397,2]
[348191513,1736376425304,-500.0,0.00019398,3]
[348191514,1736376425326,-500.0,0.00019398,3]
[348191515,1736376425346,-272.58283183,0.00019398,3]
[348191516,1736376425366,-34.73934545,0.00019398,3]
[348191517,1736376434127,-465.26065455,0.00019398,3]
[348191518,1736376434149,-477.4989843,0.00019398,3]
[348191519,1736376434172,-500.0,0.00019398,3]
[348191520,1736376434192,-500.0,0.00019398,3]
[348191521,1736376434213,-645.07156219,0.00019398,3]
[348191522,1736376434234,-485.37895315,0.00019398,3]
[348191523,1736376434255,-500.0,0.00019398,3]
[348191524,1736376434276,-500.0,0.00019398,3]
[348191525,1736376434298,-500.0,0.00019398,3]
[348191526,1736376434321,-500.0,0.00019398,3]
[348191527,1736376434341,-500.0,0.00019398,3]
[348191528,1736376434363,-282.8691388,0.00019399,2]
[348191529,1736376434383,-253.38361582,0.00019399,2]
[348191530,1736376434404,-500.0,0.00019399,2]
[348191531,1736376434426,-500.0,0.00019399,2]
[348191532,1736376434450,-500.0,0.00019399,2]
[348191533,1736376434474,-169.14594692,0.00019399,2]
[348191534,1736376434496,-500.0,0.00019399,2]
[348191535,1736376434520,-500.0,0.00019399,2]
[348191536,1736376434543,-235.43286021,0.00019399,2]
[348191537,1736376448093,-399.67508517,0.00019373,2]
[348191538,1736376448114,-459.66680341,0.00019373,2]
[348191539,1736376453099,-40.33319659,0.00019373,2]
[348191540,1736376453121,-460.31076821,0.00019373,2]
[348191581,1736376632496,-370.2624759,0.000189,2]
[348191583,1736376632505,-500.0,0.00019373,2]
[348191585,1736376632514,-500.0,0.00019373,2]
[348191588,1736376632523,-159.69499789,0.00019373,2]
[348191590,1736376632533,-500.0,0.00019398,3]
[348191592,1736376632546,-500.0,0.00019398,3]
[348191594,1736376632556,-500.0,0.00019398,3]
[348191596,1736376632565,-500.0,0.00019398,3]
[348191598,1736376632575,-500.0,0.00019398,3]
[348191600,1736376632584,-500.0,0.00019398,3]
[348191602,1736376632593,-545.24252621,0.00019398,3]
[348191606,1736376632627,-27.67747379,0.00019398,3]
[348191609,1736376632636,-500.0,0.00019398,3]
[348191611,1736376632646,-408.61708225,0.00019398,3]
[348191613,1736376632655,-500.0,0.00019398,3]
[348191615,1736376632665,-191.71752688,0.00019398,3]
[348191617,1736376632674,-534.75581708,0.00019398,2]
[348191749,1736376638388,-61.65418292,0.00019398,2]
[348191751,1736376638398,-153.49,0.00019399,2]
[348191753,1736376638408,-264.56713979,0.00019399,2]
[348191755,1736376638418,-500.0,0.00019399,2]
[348191757,1736376638427,-500.0,0.00019399,2]
[348191759,1736376638436,-500.0,0.00019399,2]
[348191761,1736376638446,-500.0,0.00019399,2]
[348191763,1736376638455,-500.0,0.00019399,2]
[348191764,1736376638465,-500.0,0.00019399,2]
[348191765,1736376638474,-396.64756811,0.00019399,2]
[348191767,1736376638483,-500.0,0.00019399,2]
[348191769,1736376638493,-500.0,0.00019399,2]
[348191771,1736376638502,-163.71343748,0.00019399,2]
[348191773,1736376638512,-500.0,0.00019399,2]
[348191775,1736376638521,-500.0,0.00019399,2]
[348191777,1736376638530,-500.0,0.00019399,2]
[348191779,1736376638542,-500.0,0.00019399,2]
[348191782,1736376638551,-496.97800798,0.00019399,2]
[348191832,1736376640420,-3.02199202,0.00019399,2]
[348191834,1736376640429,-443.04608487,0.00019399,2]
[348191836,1736376640439,-500.0,0.00019399,2]
[348191838,1736376640448,-500.0,0.00019399,2]
[348191840,1736376640457,-500.0,0.00019399,2]
[348191842,1736376640466,-500.0,0.00019399,2]
[348191844,1736376640476,-500.0,0.00019399,2]
[348191846,1736376640485,-500.0,0.00019399,2]
[348191848,1736376640494,-500.0,0.00019399,2]
[348191850,1736376640504,-377.27979408,0.00019399,2]
[348191852,1736376640513,-500.0,0.00019399,2]
[348191854,1736376640521,-500.0,0.00019399,2]
[348191856,1736376640531,-500.0,0.00019399,2]
[348191858,1736376640542,-500.0,0.00019399,2]
[348191860,1736376640552,-500.0,0.00019399,2]
[348191862,1736376640562,-500.0,0.00019399,2]
[348191864,1736376640571,-500.0,0.00019399,2]
[348191866,1736376640581,-348.05620231,0.00019399,3]
[348191869,1736376640590,-458.78863039,0.00019399,3]
[348191871,1736376640599,-415.65778891,0.00019399,3]
[348191873,1736376640608,-2374.67,0.00019399,3]
[348191874,1736376640617,-500.0,0.00019399,3]
[348191876,1736376640626,-437.15806779,0.00019399,3]
[348191878,1736376640635,-500.0,0.00019399,3]
[348191880,1736376640644,-500.7721997,0.00019399,3]
[348191882,1736376640654,-447.49177338,0.00019399,3]
[348191884,1736376640663,-5863.74185986,0.00019399,5]
[348191886,1736376640672,-11765.86730669,0.000194,5]
[348191975,1736376643707,-315.929,0.000194,5]
[348191977,1736376643720,-328.95136304,0.000194,5]
[348192114,1736377538123,-154.79876161,0.00017499,2]
[348192115,1736377538144,-171.94454446,0.00017499,2]
[348192116,1736377602740,163.870423,0.00013973,2]
[348192118,1736377626229,-300.0,0.00017499,2]
[348192119,1736377626252,-235.50706646,0.000175,3]
[348192120,1736377636115,-2222.95003684,0.000175,3]
[348192121,1736377750131,-300.0,0.00017499,2]
[348192122,1736377750153,-40534.97281683,0.000175,3]
[348192123,1736377750174,-139.16068419,0.0001802,2]
[348192124,1736377770128,-24.88427885,0.0001802,2]
[348192125,1736377770150,-203.2452471,0.0001812,2]
[348192126,1736377770171,-500.0,0.00018276,2]
[348192127,1736377770192,-131.12467405,0.00018374,2]
[348192168,1736377832681,-24.67278925,0.00018374,2]
[348192169,1736377832691,-512.23650848,0.000189,2]
[348192170,1736377832701,-96.21754313,0.00019,2]
[348192171,1736377832743,-206.41933196,0.00019,2]
[348192172,1736377832753,-302.66710251,0.00019,2]
[348192173,1736377832763,-114.68067684,0.00019006,2]
[348192177,1736377832921,-2462.76532409,0.00019006,2]
[348192179,1736377832931,-300.0,0.00019177,2]
[348192181,1736377832940,-500.0,0.00019178,2]
[348192183,1736377832950,-500.0,0.00019178,2]
[348192184,1736377832960,-500.0,0.00019178,2]
[348192185,1736377832970,-500.0,0.00019178,2]
[348192186,1736377832979,-500.0,0.00019178,2]
[348192187,1736377832989,-500.0,0.00019178,2]
[348192188,1736377832999,-500.0,0.00019178,2]
[348192189,1736377833007,-500.0,0.00019178,2]
[348192190,1736377833017,-167.4542961,0.00019178,2]
[348192191,1736377833027,-303.46020989,0.0001919,2]
[348192192,1736377833036,-303.03009129,0.0001919,2]
[348192193,1736377833046,-156.79616499,0.00019249,2]
[348192194,1736377833055,-843.10188816,0.00019295,2]
[348192195,1736377833065,-843.10188816,0.00019364,2]
[348192196,1736377833075,-173.40448625,0.00019372,2]
[348192197,1736377833084,-500.0,0.00019373,2]
[348192198,1736377833094,-161.15240427,0.00019373,2]
[348192199,1736377833212,-500.57639798,0.00019373,2]
[348192200,1736377833224,-500.0,0.00019373,2]
[348192201,1736377833236,-500.0,0.00019373,2]
[348192202,1736377833247,-500.0,0.00019373,2]
[348192203,1736377833257,-500.0,0.00019373,2]
[348192204,1736377833267,-152.0,0.0001939,2]
[348192205,1736377833277,-8942.98090404,0.00019392,5]
[348192206,1736377833287,-128312.29040562,0.00019392,5]
[348192207,1736377833296,-318.79329523,0.00019394,2]
[348192208,1736377833306,-500.0,0.00019394,2]
[348192209,1736377833315,-500.0,0.00019395,3]
[348192210,1736377833325,-500.0,0.00019395,3]
[348192211,1736377833335,-555.66,0.00019395,3]
[348192212,1736377833345,-500.0,0.00019395,3]
[348192213,1736377833355,-500.0,0.00019395,3]
[348192214,1736377833365,-500.0,0.00019395,3]
[348192215,1736377833375,-500.0,0.00019395,3]
[348192216,1736377833384,-500.0,0.00019395,3]
[348192217,1736377833394,-500.0,0.00019395,3]
[348192218,1736377833404,-500.0,0.00019395,3]
[348192219,1736377833414,-500.0,0.00019395,3]
[348192220,1736377833424,-500.0,0.00019395,3]
[348192221,1736377833435,-633.56,0.00019395,3]
[348192222,1736377833444,-500.0,0.00019395,3]
[348192223,1736377833454,-500.0,0.00019395,3]
[348192224,1736377833463,-500.0,0.00019395,3]
[348192225,1736377833473,-500.0,0.00019395,3]
[348192226,1736377833482,-500.0,0.00019395,3]
[348192227,1736377833491,-276.55766638,0.00019395,3]
[348192228,1736377833501,-500.0,0.00019395,3]
[348192229,1736377833511,-500.0,0.00019395,3]
[348192230,1736377833521,-500.0,0.00019395,3]
[348192231,1736377833531,-500.0,0.00019395,3]
[348192232,1736377833541,-500.0,0.00019395,3]
[348192233,1736377833551,-500.0,0.00019395,3]
[348192234,1736377833561,-500.0,0.00019395,3]
[348192235,1736377833571,-500.0,0.00019396,3]
[348192236,1736377833581,-500.0,0.00019396,3]
[348192237,1736377833591,-500.0,0.00019396,3]
[348192238,1736377833601,-500.0,0.00019396,3]
[348192239,1736377833611,-500.0,0.00019396,3]
[348192240,1736377833621,-500.0,0.00019396,3]
[348192241,1736377833630,-500.0,0.00019396,3]
[348192242,1736377833640,-500.0,0.00019396,3]
[348192243,1736377833649,-500.0,0.00019396,3]
[348192244,1736377833659,-505.32491721,0.00019396,3]
[348192245,1736377833669,-500.0,0.00019396,3]
[348192246,1736377833678,-519.61534759,0.00019396,3]
[348192247,1736377833688,-500.0,0.00019396,3]
[348192248,1736377833698,-500.0,0.00019396,3]
[348192249,1736377833707,-500.0,0.00019396,3]
[348192250,1736377833717,-500.0,0.00019396,3]
[348192251,1736377833726,-500.0,0.00019396,3]
[348192252,1736377833735,-500.0,0.00019396,3]
[348192253,1736377833745,-500.0,0.00019396,2]
[348192254,1736377833755,-500.0,0.00019396,3]
[348192255,1736377833765,-500.0,0.00019396,3]
[348192256,1736377833774,-219.79235701,0.00019396,3]
[348192257,1736377833783,-500.0,0.00019396,3]
[348192258,1736377833793,-500.0,0.00019396,3]
[348192259,1736377833804,-500.0,0.00019396,3]
[348192260,1736377833813,-169.55554568,0.00019396,3]
[348192261,1736377833823,-500.0,0.00019396,3]
[348192262,1736377833833,-500.0,0.00019396,3]
[348192263,1736377833843,-500.0,0.00019396,3]
[348192264,1736377833852,-209.39883061,0.00019396,3]
[348192265,1736377833861,-500.0,0.00019396,3]
[348192266,1736377833872,-500.0,0.00019396,3]
[348192267,1736377833882,-500.0,0.00019396,3]
[348192268,1736377833891,-500.0,0.00019396,3]
[348192269,1736377833901,-500.0,0.00019396,3]
[348192270,1736377833910,-533.43,0.00019396,3]
[348192271,1736377833920,-500.0,0.00019396,3]
[348192272,1736377833931,-500.0,0.00019396,3]
[348192273,1736377833941,-500.0,0.00019396,3]
[348192274,1736377833951,-500.0,0.00019396,3]
[348192275,1736377833961,-500.0,0.00019396,3]
[348192276,1736377833971,-500.0,0.00019396,3]
[348192277,1736377833981,-204.43481183,0.00019396,3]
[348192278,1736377833990,-500.0,0.00019396,3]
[348192279,1736377834000,-601.0888244,0.00019396,3]
[348192280,1736377834009,-500.0,0.00019396,3]
[348192281,1736377834019,-500.0,0.00019396,3]
[348192282,1736377834029,-500.0,0.00019396,3]
[348192283,1736377834039,-501.96902219,0.00019396,3]
[348192284,1736377834048,-500.0,0.00019396,3]
[348192285,1736377834058,-500.0,0.00019396,3]
[348192286,1736377834067,-500.0,0.00019396,3]
[348192287,1736377834077,-500.0,0.00019396,3]